fUSD/lending_fUSD_20251223
["ID","MTS","AMOUNT","RATE_DAILY","PERIOD"]
[399592522,1766525698237,-151.0,0.0003505,31]
[399592523,1766525698247,-151.0,0.0003505,31]
[399592524,1766525698257,-151.0,0.0003505,31]
[399592525,1766525698267,-151.0,0.0003505,31]
[399592526,1766525698277,-151.0,0.0003505,31]
[399592527,1766525698287,-151.0,0.0003505,31]
[399592528,1766525698297,-151.0,0.0003505,31]
[399592529,1766525698307,-151.0,0.0003505,31]
[399592530,1766525698317,-195.306305,0.0003505,31]
[399592531,1766525698326,-151.0,0.0003505,31]
[399592532,1766525698339,-195.306305,0.0003505,31]
[399592533,1766525698349,-151.0,0.0003505,31]
[399592534,1766525698360,-151.0,0.0003505,31]
[399592535,1766525698369,-151.0,0.0003505,31]
[399592536,1766525698379,-158.442846,0.0003505,31]
[399592537,1766525698389,-158.442846,0.0003505,31]
[399592538,1766525698399,-158.442846,0.0003505,31]
[399592539,1766525698409,-158.442846,0.0003505,31]
[399592540,1766525698418,-151.0,0.0003505,31]
[399592541,1766525698558,-151.0,0.0003505,31]
[399592542,1766525698572,-152.55260265,0.00035088,7]
[399592543,1766525698582,-150.0,0.00035088,7]
[399592544,1766525698592,-150.0,0.00035088,7]
[399592545,1766525698602,-150.0,0.00035088,7]
[399592546,1766525698611,-150.0,0.00035088,7]
[399592547,1766525698621,-150.0,0.00035088,7]
[399592548,1766525698631,-150.0,0.00035088,7]
[399592549,1766525698642,-150.0,0.00035088,7]
[399592550,1766525698652,-150.0,0.00035088,7]
[399592551,1766525698662,-150.0,0.00035088,7]
[399592552,1766525698672,-151.68546766,0.00035088,7]
[399592553,1766525698682,-150.0,0.00035088,7]
[399592554,1766525698691,-150.0,0.00035088,7]
[399592555,1766525698701,-150.0,0.00035088,7]
[399592556,1766525698715,-460.8,0.000351,14]
[399592557,1766525698726,-150.0,0.00035128,2]
[399592558,1766525698736,-1000.0,0.00035136,2]
[399592559,1766525698747,-1000.0,0.00035141,2]
[399592560,1766525698757,-1000.0,0.00035143,2]
[399592561,1766525698772,-1000.0,0.00035146,2]
[399592562,1766525698783,-207.866821,0.00035155,2]
[399592563,1766525698792,-1000.0,0.00035161,2]
[399592564,1766525698803,-150.0,0.00035168,2]
[399592565,1766525698814,-150.0,0.00035169,7]
[399592566,1766525698824,-150.0,0.00035171,7]
[399592567,1766525698835,-412.07301772,0.00035179,2]
[399592568,1766525698845,-1000.0,0.00035185,2]
[399592569,1766525698855,-150.0,0.00035188,7]
[399592570,1766525698865,-150.0,0.00035193,2]
[399592571,1766525698875,-150.0,0.00035195,2]
[399592572,1766525698885,-1000.0,0.00035199,14]
[399592573,1766525698895,-151.0,0.00035203,31]
[399592574,1766525698905,-151.0,0.00035203,31]
[399592575,1766525698919,-256.852261,0.00035203,31]
[399592576,1766525698928,-151.0,0.00035203,31]
[399592577,1766525698938,-230.512448,0.00035203,31]
[399592578,1766525698948,-151.0,0.00035203,31]
[399592579,1766525698957,-151.0,0.00035203,31]
[399592580,1766525698967,-151.0,0.00035203,31]
[399592581,1766525698977,-230.512448,0.00035203,31]
[399592582,1766525698987,-151.0,0.00035203,31]
[399592583,1766525698998,-230.512448,0.00035203,31]
[399592584,1766525699008,-151.0,0.00035203,31]
[399592585,1766525699018,-230.512448,0.00035203,31]
[399592586,1766525699028,-151.0,0.00035203,31]
[399592587,1766525699038,-151.0,0.00035203,31]
[399592588,1766525699049,-151.0,0.00035203,31]
[399592589,1766525699058,-151.0,0.00035203,31]
[399592590,1766525699069,-151.0,0.00035203,31]
[399592591,1766525699079,-207.398135,0.00035203,31]
[399592592,1766525699089,-207.398135,0.00035203,31]
[399592593,1766525699099,-151.0,0.00035203,31]
[399592594,1766525699110,-207.398135,0.00035203,31]
[399592595,1766525699120,-151.0,0.00035203,31]
[399592596,1766525699130,-207.398135,0.00035203,31]
[399592597,1766525699140,-200.312722,0.00035203,31]
[399592598,1766525699150,-151.0,0.00035203,31]
[399592599,1766525699160,-151.0,0.00035203,31]
[399592600,1766525699170,-151.0,0.00035203,31]
[399592601,1766525699180,-163.422143,0.00035203,31]
[399592602,1766525699190,-151.0,0.00035203,31]
[399592603,1766525699201,-163.422143,0.00035203,31]
[399592604,1766525699212,-151.0,0.00035203,31]
[399592605,1766525699222,-163.422143,0.00035203,31]
[399592606,1766525699232,-151.0,0.00035203,31]
[399592607,1766525699243,-151.0,0.00035203,31]
[399592608,1766525699254,-151.0,0.00035203,31]
[399592609,1766525699264,-163.422143,0.00035203,31]
[399592610,1766525699275,-151.0,0.00035203,31]
[399592611,1766525699298,-151.0,0.00035203,31]
[399592612,1766525699311,-1000.0,0.00035207,2]
[399592613,1766525699324,-150.0,0.00035214,2]
[399592614,1766525699336,-150.0,0.00035215,2]
[399592615,1766525699347,-1000.0,0.00035222,2]
[399592616,1766525699358,-150.0,0.00035227,7]
[399592617,1766525699369,-1000.0,0.00035242,2]
[399592618,1766525699380,-1000.0,0.00035242,2]
[399592619,1766525699391,-150.0,0.0003525,7]
[399592620,1766525699402,-150.0,0.0003525,7]
[399592621,1766525699413,-150.0,0.00035254,7]
[399592622,1766525699423,-1000.0,0.00035254,2]
[399592623,1766525699435,-150.0,0.00035255,2]
[399592624,1766525699445,-150.0,0.00035257,7]
[399592625,1766525699456,-1000.0,0.00035259,2]
[399592626,1766525699467,-150.0,0.00035276,2]
[399592627,1766525699477,-1000.0,0.00035282,2]
[399592628,1766525699488,-198.94914877,0.00035283,2]
[399592629,1766525699499,-150.0,0.00035284,2]
[399592630,1766525699510,-150.0,0.00035288,7]
[399592631,1766525699521,-1000.0,0.00035297,2]
[399592632,1766525699531,-171.0,0.00035298,120]
[399592633,1766525699542,-1000.0,0.00035299,30]
[399592634,1766525699553,-496.7,0.000353,30]
[399592635,1766525699563,-1000.0,0.00035319,2]
[399592636,1766525699574,-150.0,0.00035331,7]
[399592637,1766525699584,-150.0,0.00035337,7]
[399592638,1766525699595,-464.86,0.00035342,2]
[399592639,1766525699605,-464.86,0.00035342,2]
[399592640,1766525699616,-150.0,0.00035345,2]
[399592641,1766525699627,-150.0,0.00035356,2]
[399592642,1766525699638,-1000.0,0.00035362,2]
[399592643,1766525699655,-150.0,0.00035366,7]
[399592644,1766525699666,-1000.0,0.00035371,2]
[399592645,1766525699676,-1000.0,0.00035373,2]
[399592646,1766525699688,-1000.0,0.00035374,2]
[399592647,1766525699699,-323.0,0.00035379,4]
[399592648,1766525699710,-1000.0,0.00035379,30]
[399592649,1766525699720,-1000.0,0.00035385,2]
[399592650,1766525699732,-150.0,0.00035388,7]
[399592651,1766525699744,-150.0,0.00035393,2]
[399592652,1766525699755,-1000.0,0.00035399,2]
[399592653,1766525699769,-245.92,0.000354,14]
[399592654,1766525699779,-150.0,0.000354,12]
[399592655,1766525699790,-200.0,0.000354,2]
[399592656,1766525699803,-157.0,0.000354,7]
[399592657,1766525699813,-157.0,0.000354,7]
[399592658,1766525699824,-157.0,0.000354,7]
[399592659,1766525699836,-157.0,0.000354,7]
[399592660,1766525699847,-157.0,0.000354,7]
[399592661,1766525699859,-157.0,0.000354,7]
[399592662,1766525699870,-162.2835902,0.000354,7]
[399592663,1766525699881,-439.5129614,0.000354,2]
[399592664,1766525699892,-219.7564807,0.000354,2]
[399592665,1766525699903,-186.82,0.000354,32]
[399592666,1766525699914,-150.0,0.00035413,7]
[399592667,1766525699925,-150.0,0.00035413,7]
[399592668,1766525699936,-150.0,0.00035419,7]
[399592669,1766525699948,-150.0,0.00035427,7]
[399592670,1766525699959,-160.57,0.0003544,2]
[399592671,1766525699970,-410.0,0.00035441,30]
[399592672,1766525699981,-151.0,0.00035445,31]
[399592673,1766525699992,-151.0,0.00035445,31]
[399592674,1766525700010,-151.0,0.00035445,31]
[399592675,1766525700021,-151.0,0.00035445,31]
[399592676,1766525700032,-168.515848,0.00035445,31]
[399592677,1766525700043,-151.0,0.00035445,31]
[399592678,1766525700054,-151.0,0.00035445,31]
[399592679,1766525700066,-151.0,0.00035445,31]
[399592680,1766525700077,-151.0,0.00035445,31]
[399592681,1766525700088,-151.0,0.00035445,31]
[399592682,1766525700099,-151.0,0.00035445,31]
[399592683,1766525700110,-151.0,0.00035445,31]
[399592684,1766525700124,-166.655767,0.00035445,31]
[399592685,1766525700135,-151.0,0.00035445,31]
[399592686,1766525700146,-308.66,0.00035445,120]
[399592687,1766525700156,-150.0,0.00035488,7]
[399592688,1766525700167,-150.0,0.00035494,7]
[399592689,1766525700178,-160.57,0.00035495,2]
[399592690,1766525700189,-183.17,0.000355,14]
[399592691,1766525700200,-3959.58,0.000355,2]
[399592692,1766525700212,-150.0,0.00035502,7]
[399592693,1766525700223,-150.0,0.00035505,7]
[399592694,1766525700234,-196.82,0.00035508,2]
[399592695,1766525700246,-299.12,0.00035533,2]
[399592696,1766525700256,-160.57,0.0003555,2]
[399592697,1766525700268,-150.0,0.00035575,7]
[399592698,1766525700279,-150.0,0.00035575,7]
[399592699,1766525700290,-150.0,0.00035575,7]
[399592700,1766525700301,-150.0,0.00035575,7]
[399592701,1766525700312,-150.0,0.00035585,7]
[399592702,1766525700323,-150.0,0.00035587,7]
[399592703,1766525700334,-150.0,0.00035596,7]
[399592704,1766525700344,-166.78461245,0.00035616,95]
[399592705,1766525700355,-383.92353111,0.00035616,47]
[399592706,1766525700367,-215.70993168,0.00035616,67]
[399592707,1766525700378,-521.07080028,0.00035616,20]
[399592708,1766525700388,-210.08472468,0.00035616,30]
[399592709,1766525700398,-289.09,0.00035616,32]
[399592710,1766525700409,-234.783005,0.00035616,31]
[399592711,1766525700419,-570.09109,0.00035616,31]
[399592712,1766525700430,-570.09109,0.00035616,31]
[399592713,1766525700440,-570.09109,0.00035616,31]
[399592714,1766525700451,-570.09109,0.00035616,31]
[399592715,1766525700462,-500.0,0.00035619,30]
[399592716,1766525700472,-151.0,0.00035619,31]
[399592717,1766525700483,-151.0,0.00035619,31]
[399592718,1766525700494,-151.0,0.00035619,31]
[399592719,1766525700505,-151.0,0.00035619,31]
[399592720,1766525700516,-151.0,0.00035619,31]
[399592721,1766525700527,-151.0,0.00035619,31]
[399592722,1766525700537,-151.0,0.00035619,31]
[399592723,1766525700549,-151.0,0.00035619,31]
[399592724,1766525700559,-151.0,0.00035619,31]
[399592725,1766525700570,-151.0,0.00035619,31]
[399592726,1766525700581,-151.0,0.00035619,31]
[399592727,1766525700591,-151.0,0.00035619,31]
[399592728,1766525700602,-151.0,0.00035619,31]
[399592729,1766525700613,-151.0,0.00035619,31]
[399592730,1766525700623,-151.0,0.00035619,31]
[399592731,1766525700634,-151.0,0.00035619,31]
[399592732,1766525700644,-151.0,0.00035619,31]
[399592733,1766525700654,-151.0,0.00035619,31]
[399592734,1766525700664,-151.0,0.00035619,31]
[399592735,1766525700674,-151.0,0.00035619,31]
[399592736,1766525700684,-151.0,0.00035619,31]
[399592737,1766525700695,-154.374443,0.00035619,31]
[399592738,1766525700705,-151.0,0.00035619,31]
[399592739,1766525700716,-154.374443,0.00035619,31]
[399592740,1766525700727,-151.0,0.00035619,31]
[399592741,1766525700737,-151.0,0.00035619,31]
[399592742,1766525700747,-154.374443,0.00035619,31]
[399592743,1766525700758,-151.0,0.00035619,31]
[399592744,1766525700772,-154.374443,0.00035619,31]
[399592745,1766525700782,-151.0,0.00035619,31]
[399592746,1766525700793,-242.71403316,0.00035619,31]
[399592747,1766525700804,-151.0,0.00035619,31]
[399592748,1766525700815,-151.0,0.00035619,31]
[399592749,1766525700826,-191.85291,0.00035619,31]
[399592750,1766525700837,-151.0,0.00035619,31]
[399592751,1766525700847,-151.0,0.00035619,31]
[399592752,1766525700857,-191.85291,0.00035619,31]
[399592753,1766525700867,-151.0,0.00035619,31]
[399592754,1766525700877,-191.85291,0.00035619,31]
[399592755,1766525700887,-201.515021,0.00035619,30]
[399592756,1766525700897,-151.0,0.00035619,31]
[399592757,1766525700909,-191.85291,0.00035619,31]
[399592758,1766525700919,-201.515021,0.00035619,30]
[399592759,1766525700929,-151.0,0.00035619,31]
[399592760,1766525700939,-201.515021,0.00035619,30]
[399592761,1766525701400,-151.0,0.00035619,31]
[399592762,1766525701422,-151.0,0.00035619,31]
[399592763,1766525701433,-201.515021,0.00035619,30]
[399592764,1766525701443,-151.0,0.00035619,31]
[399592765,1766525701453,-151.0,0.00035619,31]
[399592766,1766525701464,-151.0,0.00035619,31]
[399592767,1766525701474,-151.0,0.00035619,31]
[399592768,1766525701484,-151.0,0.00035619,31]
[399592769,1766525701494,-151.0,0.00035619,31]
[399592770,1766525701504,-160.37002311,0.0003562,30]
[399592771,1766525701515,-160.37002311,0.0003562,30]
[399592772,1766525701524,-160.37002311,0.0003562,30]
[399592773,1766525701534,-160.37002311,0.0003562,30]
[399592774,1766525701545,-160.37002311,0.0003562,30]
[399592775,1766525701555,-160.37002311,0.0003562,30]
[399592776,1766525701565,-160.37002311,0.0003562,30]
[399592777,1766525701576,-160.37002311,0.0003562,30]
[399592778,1766525701586,-160.37,0.0003562,30]
[399592779,1766525701597,-168.38852427,0.0003562,30]
[399592780,1766525701607,-168.38852427,0.0003562,30]
[399592781,1766525701617,-168.38852427,0.0003562,30]
[399592782,1766525701627,-168.38852427,0.0003562,30]
[399592783,1766525701638,-168.38852427,0.0003562,30]
[399592784,1766525701647,-168.38852427,0.0003562,30]
[399592785,1766525701658,-168.38852427,0.0003562,30]
[399592786,1766525701668,-168.38852427,0.0003562,30]
[399592787,1766525701679,-168.38852427,0.0003562,30]
[399592788,1766525701689,-168.38852427,0.0003562,30]
[399592789,1766525701700,-168.38852427,0.0003562,30]
[399592790,1766525701710,-150.0,0.00035645,7]
[399592791,1766525701720,-150.0,0.00035645,7]
[399592792,1766525701729,-150.0,0.00035645,7]
[399592793,1766525701740,-150.0,0.00035656,7]
[399592794,1766525701750,-150.0,0.00035668,7]
[399592795,1766525701762,-150.0,0.00035687,7]
[399592796,1766525701776,-11868.37,0.000357,14]
[399592797,1766525701786,-150.0,0.00035737,7]
[399592798,1766525701796,-150.0,0.00035737,7]
[399592799,1766525701808,-150.0,0.00035751,7]
[399592800,1766525701818,-200.0,0.00035754,2]
[399592801,1766525701829,-150.0,0.00035766,7]
[399592802,1766525701842,-150.0,0.00035784,7]
[399592803,1766525701855,-150.0,0.00035787,7]
[399592804,1766525701865,-168.38852427,0.00035788,30]
[399592805,1766525701876,-150.0,0.00035819,7]
[399592806,1766525701886,-150.0,0.00035834,7]
[399592807,1766525701897,-150.0,0.00035867,7]
[399592808,1766525701907,-150.0,0.00035887,7]
[399592809,1766525701917,-150.0,0.000359,7]
[399592810,1766525701928,-150.0,0.000359,7]
[399592811,1766525701939,-150.0,0.00035917,7]
[399592812,1766525701950,-150.0,0.00035923,7]
[399592813,1766525701961,-150.0,0.00035935,7]
[399592814,1766525701971,-150.0,0.00035981,7]
[399592815,1766525701981,-150.0,0.00035987,7]
[399592816,1766525701991,-177.72419642,0.00036,4]
[399592817,1766525702001,-1000.0,0.00036,15]
[399592818,1766525702011,-1000.0,0.00036,15]
[399592819,1766525702029,-260.91992875,0.00036,2]
[399592820,1766525702040,-152.44915668,0.00036,2]
[399592821,1766525702059,-250.0,0.00036,45]
[399592822,1766525702079,-250.0,0.00036,45]
[399592823,1766525702100,-150.0,0.00036,7]
[399592824,1766525702120,-150.0,0.00036062,7]
[399592825,1766525702142,-150.0,0.00036062,7]
[399592826,1766525702164,-150.0,0.00036062,7]
[399592827,1766525702176,-150.0,0.00036062,7]
[399592828,1766525702186,-150.0,0.00036062,7]
[399592829,1766525702196,-150.0,0.00036083,7]
[399592830,1766525702207,-150.0,0.00036087,7]
[399592831,1766525702219,-460.8,0.000361,14]
[399592832,1766525702229,-496.7,0.000361,30]
[399592833,1766525702239,-150.0,0.00036105,7]
[399592834,1766525702249,-150.0,0.00036144,7]
[399592835,1766525702259,-150.0,0.00036166,7]
[399592836,1766525702269,-168.38852427,0.00036177,30]
[399592837,1766525702279,-150.0,0.00036187,7]
[399592838,1766525702289,-245.92,0.000362,14]
[399592839,1766525702300,-183.17,0.000362,14]
[399592840,1766525702310,-150.0,0.00036202,7]
[399592841,1766525702321,-150.0,0.00036202,7]
[399592842,1766525702331,-150.0,0.00036202,7]
[399592843,1766525702342,-150.0,0.00036225,7]
[399592844,1766525702353,-150.0,0.00036225,7]
[399592845,1766525702363,-150.0,0.00036249,7]
[399592846,1766525702373,-150.0,0.00036274,7]
[399592847,1766525702384,-150.0,0.00036287,7]
[399592848,1766525702394,-289.09,0.00036301,33]
[399592849,1766525702403,-150.0,0.00036306,7]
[399592850,1766525702413,-150.0,0.00036332,7]
[399592851,1766525702424,-150.0,0.00036341,7]
[399592852,1766525702434,-150.0,0.00036387,7]
[399592853,1766525702443,-150.0,0.00036387,7]
[399592854,1766525702453,-150.0,0.00036387,7]
[399592855,1766525702463,-150.0,0.000364,14]
[399592856,1766525702473,-150.0,0.00036415,7]
[399592857,1766525702483,-150.0,0.00036444,7]
[399592858,1766525702493,-150.0,0.00036468,7]
[399592859,1766525702502,-150.0,0.0003648,7]
[399592860,1766525702512,-150.0,0.00036487,7]
[399592861,1766525702522,-150.0,0.00036498,7]
[399592862,1766525702533,-150.0,0.0003655,7]
[399592863,1766525702543,-150.0,0.0003655,7]
[399592864,1766525702552,-150.0,0.0003655,7]
[399592865,1766525702562,-150.0,0.0003655,7]
[399592866,1766525702572,-168.38852427,0.00036566,30]
[399592867,1766525702582,-150.0,0.00036581,7]
[399592868,1766525702592,-150.0,0.00036587,7]
[399592869,1766525702602,-150.0,0.00036613,7]
[399592870,1766525702613,-150.0,0.00036619,7]
[399592871,1766525702623,-150.0,0.00036631,7]
[399592872,1766525702633,-150.0,0.00036647,7]
[399592873,1766525702643,-150.0,0.00036664,7]
[399592874,1766525702653,-150.0,0.00036687,7]
[399592875,1766525702663,-150.0,0.00036712,7]
[399592876,1766525702674,-150.0,0.00036712,7]
[399592877,1766525702684,-150.0,0.00036747,7]
[399592878,1766525702695,-150.0,0.00036759,7]
[399592879,1766525702704,-150.0,0.00036759,7]
[399592880,1766525702715,-150.0,0.00036759,7]
[399592881,1766525702726,-150.0,0.00036783,7]
[399592882,1766525702737,-150.0,0.00036787,7]
[399592883,1766525702746,-150.0,0.00036793,7]
[399592884,1766525702756,-979.25011314,0.000368,120]
[399592885,1766525702769,-11868.37,0.000368,14]
[399592886,1766525702780,-150.0,0.0003683,7]
[399592887,1766525702790,-150.0,0.00036875,7]
[399592888,1766525702802,-150.0,0.00036875,7]
[399592889,1766525702815,-150.0,0.00036887,7]
[399592890,1766525702824,-150.0,0.00036898,7]
[399592891,1766525702836,-496.7,0.000369,30]
[399592892,1766525702848,-183.17,0.000369,14]
[399592893,1766525702858,-150.0,0.00036913,7]
[399592894,1766525702868,-152.0,0.00036924,6]
[399592895,1766525702877,-200.0,0.00036929,2]
[399592896,1766525702887,-200.0,0.00036929,2]
[399592897,1766525702898,-200.0,0.00036929,2]
[399592898,1766525702909,-200.0,0.00036929,2]
[399592899,1766525702920,-200.0,0.00036929,2]
[399592900,1766525702931,-200.0,0.00036929,2]
[399592901,1766525702941,-200.0,0.00036929,2]
[399592902,1766525702951,-200.0,0.00036929,2]
[399592903,1766525702961,-200.0,0.00036929,2]
[399592904,1766525702971,-200.0,0.00036929,2]
[399592905,1766525702981,-200.0,0.00036929,2]
[399592906,1766525702991,-200.0,0.00036929,2]
[399592907,1766525703000,-200.0,0.00036929,2]
[399592908,1766525703010,-200.0,0.00036929,2]
[399592909,1766525703020,-200.0,0.00036929,2]
[399592910,1766525703030,-200.0,0.00036929,2]
[399592911,1766525703041,-200.0,0.00036929,2]
[399592912,1766525703051,-200.0,0.00036929,2]
[399592913,1766525703061,-200.0,0.00036929,2]
[399592914,1766525703072,-200.0,0.00036929,2]
[399592915,1766525703081,-200.0,0.00036929,2]
[399592916,1766525703091,-200.0,0.00036929,2]
[399592917,1766525703102,-200.0,0.00036929,2]
[399592918,1766525703112,-200.0,0.00036929,2]
[399592919,1766525703122,-200.0,0.00036929,2]
[399592920,1766525703136,-200.0,0.00036929,2]
[399592921,1766525703146,-200.0,0.00036929,2]
[399592922,1766525703156,-200.0,0.00036929,2]
[399592923,1766525703166,-200.0,0.00036929,2]
[399592924,1766525703177,-200.0,0.00036929,2]
[399592925,1766525703187,-200.0,0.00036929,2]
[399592926,1766525703197,-200.0,0.00036929,2]
[399592927,1766525703206,-200.0,0.00036929,2]
[399592928,1766525703216,-200.0,0.00036929,2]
[399592929,1766525703225,-200.0,0.00036929,2]
[399592930,1766525703235,-150.0,0.00036952,7]
[399592931,1766525703246,-168.38852427,0.00036955,30]
[399592932,1766525703259,-150.0,0.00036956,7]
[399592933,1766525703269,-383.88487684,0.00036986,109]
[399592934,1766525703280,-316.90066857,0.00036986,71]
[399592935,1766525703291,-289.09,0.00036986,34]
[399592936,1766525703301,-150.0,0.00036987,7]
[399592937,1766525703311,-150.0,0.00036996,7]
[399592938,1766525703322,-2000.0,0.00037,30]
[399592939,1766525703332,-600.0,0.00037,30]
[399592940,1766525703342,-500.0,0.00037,120]
[399592941,1766525703351,-164.5528546,0.00037,2]
[399592942,1766525703361,-250.0,0.00037,45]
[399592943,1766525703371,-245.92,0.00037,14]
[399592944,1766525703381,-150.0,0.00037037,7]
[399592945,1766525703392,-150.0,0.00037037,7]
[399592946,1766525703403,-150.0,0.00037037,7]
[399592947,1766525703413,-150.0,0.00037037,7]
[399592948,1766525703423,-150.0,0.00037037,7]
[399592949,1766525703432,-171.0,0.00037062,120]
[399592950,1766525703443,-150.0,0.00037078,7]
[399592951,1766525703453,-150.0,0.00037087,7]
[399592952,1766525703462,-220.40970188,0.00037088,120]
[399592953,1766525703472,-460.8,0.000371,14]
[399592954,1766525703482,-150.0,0.00037118,7]
[399592955,1766525703491,-150.0,0.00037122,7]
[399592956,1766525703503,-150.0,0.00037161,7]
[399592957,1766525703513,-150.0,0.00037176,7]
[399592958,1766525703523,-150.0,0.00037187,7]
[399592959,1766525703534,-323.0,0.0003719,5]
[399592960,1766525703544,-150.0,0.00037199,7]
[399592961,1766525703555,-150.0,0.00037199,7]
[399592962,1766525703565,-210.574145,0.000372,120]
[399592963,1766525703575,-210.57414499,0.000372,120]
[399592964,1766525703586,-210.57414499,0.000372,120]
[399592965,1766525703598,-210.57414499,0.000372,120]
[399592966,1766525703608,-10000.0,0.0003724,2]
[399592967,1766525703619,-150.0,0.00037244,7]
[399592968,1766525703629,-150.0,0.00037281,7]
[399592969,1766525703638,-150.0,0.00037287,7]
[399592970,1766525703648,-150.0,0.00037291,7]
[399592971,1766525703659,-150.0,0.00037315,7]
[399592972,1766525703668,-150.0,0.00037315,7]
[399592973,1766525703679,-150.0,0.00037315,7]
[399592974,1766525703689,-150.0,0.00037327,7]
[399592975,1766525703699,-168.38852427,0.00037344,30]
[399592976,1766525703709,-150.0,0.00037362,7]
[399592977,1766525703719,-150.0,0.00037362,7]
[399592978,1766525703729,-150.0,0.00037387,7]
[399592979,1766525703738,-160.0,0.000374,11]
[399592980,1766525703749,-160.0,0.000374,11]
[399592981,1766525703758,-160.0,0.000374,11]
[399592982,1766525703773,-200.0,0.000374,16]
[399592983,1766525703783,-1630.61163957,0.000374,2]
[399592984,1766525703793,-150.0,0.0003741,7]
[399592985,1766525703804,-150.0,0.00037427,7]
[399592986,1766525703816,-150.0,0.00037443,7]
[399592987,1766525703826,-150.0,0.00037455,7]
[399592988,1766525703836,-150.0,0.00037461,7]
[399592989,1766525703847,-150.0,0.00037487,7]
[399592990,1766525703858,-150.0,0.00037493,7]
[399592991,1766525703868,-500.0,0.000375,60]
[399592992,1766525703878,-150.0,0.00037524,7]
[399592993,1766525703889,-150.0,0.00037524,7]
[399592994,1766525703899,-150.0,0.00037524,7]
[399592995,1766525703909,-150.0,0.00037524,7]
[399592996,1766525703918,-220.71,0.0003753,60]
[399592997,1766525703928,-150.0,0.00037576,7]
[399592998,1766525703938,-150.0,0.00037587,7]
[399592999,1766525703949,-150.0,0.00037594,7]
[399593000,1766525703958,-183.17,0.000376,14]
[399593001,1766525703969,-150.0,0.00037606,7]
[399593002,1766525703979,-150.0,0.0003763,7]
[399593003,1766525703988,-410.0,0.00037656,30]
[399593004,1766525703998,-150.0,0.00037659,7]
[399593005,1766525704008,-289.09,0.00037671,35]
[399593006,1766525704141,-150.0,0.00037687,7]
[399593007,1766525704153,-150.0,0.00037687,7]
[399593008,1766525704163,-150.0,0.00037687,7]
[399593009,1766525704172,-496.7,0.000377,30]
[399593010,1766525704182,-160.0,0.0003772,11]
[399593011,1766525704193,-168.38852427,0.00037733,30]
[399593012,1766525704203,-150.0,0.00037733,7]
[399593013,1766525704213,-150.0,0.00037742,7]
[399593014,1766525704224,-150.0,0.00037768,7]
[399593015,1766525704233,-150.0,0.00037787,7]
[399593016,1766525704244,-150.0,0.000378,7]
[399593017,1766525704254,-245.92,0.000378,14]
[399593018,1766525704264,-191.02,0.00037808,60]
[399593019,1766525704276,-150.0,0.00037825,7]
[399593020,1766525704286,-191.03,0.00037839,80]
[399593021,1766525704297,-150.0,0.00037849,7]